bitfinex/quotes_SOLUSD_20241208
["timestamp","ask_amount","ask_price","bid_price","bid_amount"]
[1733623266671,8.06017844,239.52,239.46,0.62621494]
[1733623267188,8.06017844,239.49,239.45,20.0]
[1733623267692,8.06017844,239.5,239.45,20.0]
[1733623267870,8.06017844,239.49,239.43,0.62632202]
[1733623270602,8.06017844,239.47,239.43,20.0]
[1733623270768,8.06017844,239.47,239.41,6.43719322]
[1733623272902,8.06017844,239.45,239.42,20.0]
[1733623276801,8.06017844,239.44,239.41,1.6368]
[1733623276972,8.06017844,239.43,239.41,1.6368]
[1733623277178,8.06017844,239.43,239.38,6.5839]
[1733623277698,0.12549,239.51,239.39,4.174]
[1733623277699,8.06017844,239.44,239.39,4.174]
[1733623277878,8.06017844,239.44,239.38,6.5839]
[1733623280978,0.12549,239.51,239.38,14.64407844]
[1733623280979,8.06017844,239.45,239.38,14.64407844]
[1733623282009,23.776884,239.51,239.39,12.86063258]
[1733623282174,8.06017844,239.49,239.42,8.06017844]
[1733623282508,8.06017844,239.51,239.43,8.68654276]
[1733623283012,6.51017844,239.51,239.43,8.68654276]
[1733623283700,8.06017844,239.5,239.43,24.80036432]
[1733623284091,8.06017844,239.5,239.43,4.80036432]
[1733623284679,0.12549,239.54,239.43,4.80036432]
[1733623284680,8.06017844,239.48,239.44,20.0]
[1733623285042,8.06017844,239.46,239.38,14.64407844]
[1733623285176,8.06017844,239.46,239.41,20.0]
[1733623286369,8.06017844,239.47,239.42,20.0]
[1733623288823,8.06017844,239.46,239.41,20.0]
[1733623289324,0.08026626,239.42,239.41,20.0]
[1733623291731,0.08026626,239.42,239.41,20.62637718]
[1733623292331,0.08026626,239.42,239.41,24.80037718]
[1733623295331,0.08026626,239.42,239.41,20.62637718]
[1733623297806,0.08026626,239.42,239.41,24.80037718]
[1733623298606,0.08026626,239.42,239.41,20.62637718]
[1733623302205,0.08026626,239.42,239.41,20.0]
[1733623305103,0.08026626,239.42,239.39,4.80040736]
[1733623305307,0.08026626,239.42,239.41,20.0]
[1733623307410,8.1404447,239.42,239.39,0.62640736]
[1733623307714,8.1404447,239.42,239.39,20.62640736]
[1733623309249,8.1404447,239.42,239.39,0.62640736]
[1733623309544,0.08986506,239.4,239.38,20.62646368]
[1733623313750,0.08986506,239.4,239.38,0.62646368]
[1733623314652,0.08986506,239.4,239.38,20.62646368]
[1733623315534,0.08986506,239.4,239.39,20.0]
[1733623315942,0.08986506,239.4,239.39,20.62647835]
[1733623316837,0.08986506,239.4,239.39,32.86065679]
[1733623317051,0.08986506,239.4,239.39,28.68665679]
[1733623317226,0.08986506,239.4,239.39,32.86065679]
[1733623318525,0.08147868,239.44,239.39,29.06312679]
[1733623318732,0.08147868,239.44,239.43,8.18566844]
[1733623318945,0.08147868,239.44,239.43,8.81191516]
[1733623319537,0.08147868,239.44,239.43,12.98591516]
[1733623320945,0.08147868,239.44,239.43,13.11140516]
[1733623321155,0.08147868,239.44,239.43,13.23689516]
[1733623321340,1.5252,239.61,239.43,13.23689516]
[1733623321341,1.5252,239.61,239.44,10.69198]
[1733623321541,8.06017844,239.58,239.5,8.06017844]
[1733623321745,8.06017844,239.57,239.51,0.62610464]
[1733623322343,0.12549,239.6,239.49,8.68628482]
[1733623322536,8.06017844,239.56,239.49,8.68628482]
[1733623324744,8.06017844,239.54,239.49,0.62610638]
[1733623325038,0.12549,239.6,239.44,0.626178]
[1733623325039,0.25098,239.6,239.44,0.626178]
[1733623325249,8.06017844,239.5,239.44,0.626178]
[1733623326134,8.06017844,239.5,239.46,20.0]
[1733623326766,8.06017844,239.5,239.45,20.0]
[1733623327368,8.06017844,239.48,239.43,2.12690584]
[1733623328249,8.06017844,239.48,239.43,1.5006]
[1733623328659,8.06017844,239.48,239.43,21.5006]
[1733623329473,0.08612506,239.44,239.43,21.5006]
[1733623330665,0.08612506,239.44,239.43,22.25233773]
[1733623334947,0.08612506,239.44,239.43,20.75173773]
[1733623335144,0.08612506,239.44,239.43,20.12549]
[1733623335352,0.08612506,239.44,239.43,0.62630788]
[1733623336080,0.08612506,239.44,239.43,20.62630788]
[1733623336858,0.08612506,239.44,239.43,24.80030788]
[1733623339174,0.08612506,239.44,239.43,20.62630788]
[1733623339480,0.08612506,239.44,239.43,0.62630788]
[1733623342675,0.08612506,239.44,239.43,20.62630788]
[1733623342990,0.08612506,239.44,239.43,0.62630788]
[1733623343390,0.08612506,239.44,239.43,20.62630788]
[1733623345198,0.08612506,239.44,239.43,0.62630788]
[1733623345599,0.08612506,239.44,239.43,20.62630788]
[1733623345767,0.08612506,239.44,239.43,28.81197632]
[1733623346574,0.08612506,239.44,239.43,20.62630788]
[1733623346983,0.08612506,239.44,239.43,24.80030788]
[1733623349374,0.16994889,239.44,239.43,24.80030788]
[1733623350309,0.08382383,239.44,239.43,24.80030788]
[1733623352504,0.08382383,239.44,239.43,0.62630788]
[1733623352674,0.08382383,239.44,239.4,0.62638775]
[1733623352997,0.08382383,239.44,239.42,20.0]
[1733623353299,0.08382383,239.44,239.43,0.62638863]
[1733623363723,0.08382383,239.44,239.41,20.62637823]
[1733623365217,0.08382383,239.44,239.42,20.0]
[1733623365600,0.08701148,239.45,239.44,0.25098]
[1733623365819,0.09043205,239.52,239.46,0.25098]
[1733623366120,0.09043205,239.52,239.48,8.31115844]
[1733623367706,0.09043205,239.52,239.48,18.75035844]
[1733623368025,0.09043205,239.52,239.48,22.92435844]
[1733623369407,0.17279473,239.49,239.48,22.92435844]
[1733623369601,0.17279473,239.49,239.48,10.69018]
[1733623369903,0.17279473,239.49,239.47,0.62614421]
[1733623370094,0.17279473,239.49,239.48,20.0]
[1733623370301,0.09128154,239.49,239.48,20.0]
[1733623371503,0.09128154,239.49,239.47,20.62614421]
[1733623372009,0.09128154,239.49,239.47,24.80014421]
[1733623373519,0.09128154,239.49,239.47,20.62614421]
[1733623373995,0.09128154,239.49,239.48,20.0]
[1733623374518,0.09128154,239.49,239.48,20.62622582]
[1733623375400,0.09128154,239.49,239.48,20.0]
[1733623377134,0.09128154,239.49,239.48,24.174]
[1733623377430,0.09128154,239.49,239.48,4.174]
[1733623377600,0.09128154,239.49,239.48,4.80014786]
[1733623378228,0.09128154,239.49,239.48,20.62614786]
[1733623378528,0.09128154,239.49,239.48,24.80014786]
[1733623382412,0.09128154,239.49,239.48,20.62614786]
[1733623382734,0.09128154,239.49,239.48,0.62614786]
[1733623382902,0.09128154,239.49,239.48,0.87712786]
[1733623383726,0.09128154,239.49,239.48,0.75163786]
[1733623383923,0.09128154,239.49,239.48,20.75163786]
[1733623384127,0.09128154,239.49,239.48,20.62614786]
[1733623384529,0.09128154,239.49,239.48,24.80014786]
[1733623384830,0.09128154,239.49,239.48,0.62614786]
[1733623385022,0.09128154,239.49,239.47,20.0]
[1733623385202,0.09128154,239.49,239.48,0.62618679]
[1733623386617,0.09128154,239.49,239.48,20.62618679]
[1733623387028,0.09128154,239.49,239.48,24.80018679]
[1733623389502,0.09128154,239.49,239.48,20.62618679]
[1733623390299,8.06017844,239.53,239.48,20.62618679]
[1733623390903,8.06017844,239.54,239.48,20.62618679]
[1733623391333,8.06017844,239.59,239.51,0.12549]
[1733623391639,8.06017844,239.6,239.53,8.06017844]
[1733623391811,8.06017844,239.6,239.54,0.62603873]
[1733623394416,8.06017844,239.59,239.54,0.62603873]
[1733623395151,8.06017844,239.58,239.53,0.62604628]
[1733623395519,8.06017844,239.58,239.53,20.62604628]
[1733623396639,8.06017844,239.59,239.53,20.62604628]
[1733623396943,1.5494,239.64,239.53,20.62604628]
[1733623397137,1.5494,239.64,239.54,4.174]
[1733623397352,8.06017844,239.6,239.54,4.174]
[1733623398814,8.06017844,239.59,239.54,4.174]
[1733623399426,8.06017844,239.59,239.53,20.62604628]
[1733623401947,1.6026,239.69,239.56,8.06017844]
[1733623402123,8.06017844,239.65,239.58,8.06017844]
[1733623402317,8.06017844,239.65,239.59,0.62587575]
[1733623404324,8.06017844,239.65,239.59,20.62587575]
[1733623404623,8.06017844,239.67,239.6,20.0]
[1733623404823,1.6026,239.75,239.62,20.0]
[1733623405034,8.06017844,239.69,239.62,20.0]
[1733623405235,8.06017844,239.67,239.63,20.0]
[1733623406525,8.06017844,239.7,239.64,0.62579799]
[1733623406721,1.6026,239.75,239.64,8.68597643]
[1733623406932,6.1744,239.77,239.65,8.06017844]
[1733623407151,8.06017844,239.72,239.66,0.62570249]
[1733623407347,8.06017844,239.71,239.66,0.62570249]
[1733623409163,8.06017844,239.69,239.63,20.0]
[1733623410555,8.06017844,239.69,239.64,20.0]
[1733623411745,8.06017844,239.68,239.64,20.0]
[1733623412146,8.06017844,239.66,239.63,20.0]
[1733623412453,8.06017844,239.64,239.57,6.0741]
[1733623412686,8.06017844,239.62,239.57,6.0741]
[1733623412834,8.06017844,239.62,239.56,0.62585842]
[1733623413035,8.06017844,239.61,239.56,0.62585842]
[1733623413230,8.06017844,239.61,239.55,0.62601601]
[1733623413651,8.06017844,239.59,239.55,0.62601601]
[1733623413955,8.06017844,239.58,239.54,5.8379]
[1733623414565,8.06017844,239.58,239.53,0.62604229]
[1733623414937,8.06017844,239.58,239.53,20.0]
[1733623415457,8.06017844,239.57,239.51,0.62608511]
[1733623415649,8.06017844,239.57,239.52,20.0]
[1733623416956,8.06017844,239.57,239.5,0.62608987]
[1733623416957,8.06017844,239.55,239.5,20.62608987]
[1733623417255,8.06017844,239.55,239.5,20.0]
[1733623417464,8.06017844,239.54,239.49,1.5194]
[1733623417644,1.66769,239.63,239.49,1.5194]
[1733623417645,8.06017844,239.52,239.49,1.5194]
[1733623417855,8.06017844,239.51,239.44,0.62625868]
[1733623418573,8.06017844,239.48,239.43,1.5194]
[1733623420202,8.06017844,239.48,239.44,20.0]
[1733623424558,8.06017844,239.48,239.43,1.5194]
[1733623424863,8.06017844,239.48,239.41,6.2228]
[1733623424864,8.06017844,239.46,239.41,20.0]
[1733623425038,8.06017844,239.44,239.4,20.0]
[1733623425740,8.06017844,239.44,239.4,20.62642219]
[1733623426042,8.06017844,239.46,239.4,20.62642219]
[1733623426866,1.5422,239.54,239.44,20.0]
[1733623427164,8.06017844,239.5,239.45,0.62630509]
[1733623427335,1.5422,239.54,239.45,0.62630509]
[1733623427535,1.5422,239.6,239.45,0.62630509]
[1733623427752,8.06017844,239.52,239.45,0.62630509]
[1733623427961,8.06017844,239.52,239.46,20.0]
[1733623428153,8.06017844,239.53,239.48,20.0]
[1733623429141,38.41311376,239.64,239.49,20.62623264]
[1733623429341,8.06017844,239.54,239.51,20.0]
[1733623430065,8.06017844,239.54,239.49,20.0]
[1733623436988,8.06017844,239.54,239.5,4.174]
[1733623437654,8.06017844,239.52,239.46,12.0044]
[1733623437849,8.06017844,239.51,239.46,1.5645]
[1733623439478,8.06017844,239.52,239.46,1.5645]
[1733623439660,8.06017844,239.53,239.47,4.80026841]
[1733623440349,8.06017844,239.55,239.47,8.68644685]
[1733623440860,8.06017844,239.55,239.48,4.174]
[1733623441087,8.06017844,239.55,239.49,0.62617389]
[1733623441261,10.433,239.63,239.49,0.62617389]
[1733623441262,38.41311376,239.64,239.5,20.0]
[1733623441461,38.41311376,239.64,239.51,0.62612496]
[1733623441462,8.06017844,239.58,239.51,0.62612496]
[1733623442292,8.06017844,239.56,239.51,20.0]
[1733623442467,8.06017844,239.52,239.46,1.5645]
[1733623442786,8.06017844,239.52,239.48,20.0]
[1733623443459,8.06017844,239.5,239.48,20.0]
[1733623443665,8.06017844,239.5,239.47,20.0]
[1733623443885,8.06017844,239.48,239.46,1.5645]
[1733623444089,8.06017844,239.48,239.41,4.174]
[1733623444389,8.06017844,239.48,239.42,0.62634214]
[1733623444761,8.06017844,239.49,239.42,0.62634214]
[1733623445583,8.06017844,239.49,239.44,20.0]
[1733623446984,8.06017844,239.49,239.43,20.0]
[1733623447198,8.06017844,239.49,239.44,4.174]
[1733623447867,8.06017844,239.47,239.44,4.174]
[1733623453587,24.027864,239.56,239.44,4.174]
[1733623453902,8.06017844,239.47,239.44,4.174]
[1733623454622,8.06017844,239.45,239.43,20.0]
[1733623455097,8.06017844,239.45,239.42,20.0]
[1733623455299,8.06017844,239.47,239.42,20.0]
[1733623455504,8.06017844,239.47,239.43,20.0]
[1733623460284,8.06017844,239.47,239.42,20.0]
[1733623462480,8.06017844,239.47,239.43,20.0]
[1733623464092,6.4929,239.55,239.43,24.80041657]
[1733623464300,8.06017844,239.5,239.43,24.80041657]
[1733623464494,8.06017844,239.5,239.43,24.174]
[1733623465476,8.06017844,239.48,239.43,24.174]
[1733623466375,8.06017844,239.46,239.42,20.0]
[1733623466792,8.06017844,239.44,239.38,10.4432]
[1733623467603,8.06017844,239.44,239.38,14.6172]
[1733623468771,8.06017844,239.44,239.39,0.62645688]
[1733623469801,32.24071376,239.52,239.41,20.0]
[1733623469977,8.06017844,239.45,239.41,20.0]
[1733623472106,8.06017844,239.51,239.45,20.0]
[1733623472285,8.06017844,239.51,239.45,20.62628585]
[1733623472483,1.5814,239.57,239.47,20.0]
[1733623472484,8.06017844,239.53,239.47,20.0]
[1733623472734,8.06017844,239.53,239.49,20.0]
[1733623474197,6.3447,239.6,239.49,20.0]
[1733623474405,8.06017844,239.55,239.49,20.0]
[1733623474900,1.5233,239.63,239.48,0.62626098]
[1733623474901,8.06017844,239.57,239.51,20.0]
[1733623476520,8.06017844,239.55,239.51,20.0]
[1733623477227,8.06017844,239.55,239.52,4.174]
[1733623478319,8.06017844,239.55,239.49,20.62616677]
[1733623479203,8.06017844,239.55,239.51,20.0]
[1733623483306,23.902374,239.62,239.51,20.0]
[1733623483508,8.06017844,239.56,239.51,20.0]
[1733623485210,23.902374,239.62,239.51,20.0]
[1733623485412,23.902374,239.62,239.53,20.0]
[1733623485413,8.06017844,239.58,239.53,20.0]
[1733623485923,6.3447,239.66,239.53,20.62612383]
[1733623486131,16.7738,239.72,239.55,20.0]
[1733623486432,8.06017844,239.63,239.57,20.0]
[1733623487834,1.5233,239.75,239.58,8.6861608]
[1733623488131,8.06017844,239.66,239.61,20.0]
[1733623488298,1.5233,239.75,239.61,20.0]
[1733623488299,8.06017844,239.62,239.61,20.0]
[1733623488700,8.06017844,239.62,239.6,20.0]
[1733623489917,8.06017844,239.61,239.54,10.4364]
[1733623490114,8.06017844,239.59,239.53,0.62597623]
[1733623491231,8.06017844,239.59,239.55,20.0]
[1733623491734,8.06017844,239.6,239.55,20.0]
[1733623493525,6.587,239.74,239.57,8.06017844]
[1733623493732,8.06017844,239.64,239.6,20.0]
[1733623494236,8.06017844,239.62,239.55,0.12549]
[1733623494411,8.06017844,239.62,239.57,20.0]
[1733623494815,8.06017844,239.62,239.59,20.0]
[1733623495032,8.06017844,239.63,239.59,20.0]
[1733623497313,8.06017844,239.62,239.59,20.0]
[1733623497716,5.0,239.71,239.52,10.4371]
[1733623497915,8.06017844,239.57,239.52,4.174]
[1733623498208,8.06017844,239.56,239.5,1.5987]
[1733623499337,8.06017844,239.55,239.51,4.174]
[1733623500212,8.06017844,239.55,239.53,20.0]
[1733623500715,8.06017844,239.55,239.52,20.0]
[1733623500915,8.06017844,239.55,239.51,20.0]
[1733623502024,8.06017844,239.57,239.52,20.0]
[1733623502340,8.06017844,239.59,239.53,0.62609508]
[1733623502636,8.06017844,239.57,239.51,20.0]
[1733623503139,8.06017844,239.57,239.49,8.68625773]
[1733623503140,8.06017844,239.57,239.52,20.0]
[1733623503637,8.06017844,239.57,239.53,4.174]
[1733623505130,8.06017844,239.57,239.52,20.0]
[1733623505332,32.24071376,239.64,239.51,20.0]
[1733623505333,8.06017844,239.55,239.51,20.0]
[1733623505718,8.06017844,239.55,239.52,20.0]
[1733623506444,8.06017844,239.57,239.52,20.0]
[1733623506828,8.06017844,239.57,239.53,4.174]
[1733623507029,8.06017844,239.57,239.52,20.62613125]
[1733623507442,8.06017844,239.57,239.53,4.174]
[1733623508541,8.06017844,239.59,239.53,4.174]
[1733623508717,8.06017844,239.59,239.52,4.80013125]
[1733623508918,23.902374,239.64,239.52,4.80013125]
[1733623509118,8.06017844,239.59,239.52,4.80013125]
[1733623509315,6.587,239.65,239.55,4.174]
[1733623509516,6.587,239.65,239.58,20.0]
[1733623509517,8.06017844,239.65,239.58,20.0]
[1733623509825,8.06017844,239.63,239.6,20.0]
[1733623510435,8.06017844,239.63,239.58,20.0]
[1733623510639,8.06017844,239.63,239.59,4.174]
[1733623514428,8.06017844,239.65,239.6,20.0]
[1733623515056,8.06017844,239.63,239.6,20.0]
[1733623515272,8.06017844,239.63,239.59,20.0]
[1733623515440,8.06017844,239.63,239.56,0.6259745]
[1733623515758,8.06017844,239.59,239.53,1.6121]
[1733623516757,8.06017844,239.59,239.56,20.0]
[1733623517258,8.06017844,239.59,239.55,20.0]
[1733623518269,8.06017844,239.59,239.56,20.0]
[1733623520134,8.06017844,239.61,239.56,20.0]
[1733623520342,24.027864,239.7,239.57,20.62604874]
[1733623520554,8.06017844,239.64,239.59,20.0]
[1733623521748,1.6444,239.73,239.59,20.0]
[1733623521749,1.6444,239.73,239.65,20.0]
[1733623522073,6.4537,239.77,239.65,0.62574004]
[1733623522074,8.06017844,239.71,239.65,0.62574004]
[1733623522371,8.06017844,239.71,239.65,4.79974004]
[1733623523142,8.06017844,239.71,239.65,0.62574004]
[1733623523347,8.06017844,239.71,239.65,4.79974004]
[1733623524358,8.06017844,239.71,239.65,0.62574004]
[1733623524550,8.06017844,239.71,239.65,4.79974004]
[1733623525174,8.06017844,239.71,239.65,0.62574004]
[1733623525375,10.4243,239.83,239.69,28.06017844]
[1733623525376,6.4537,239.83,239.69,28.06017844]
[1733623525550,8.06017844,239.76,239.69,28.06017844]
[1733623526652,8.06017844,239.76,239.7,4.174]
[1733623527047,6.4537,239.83,239.71,0.62563616]
[1733623527252,8.06017844,239.78,239.71,8.6858146]
[1733623527551,8.06017844,239.78,239.74,20.0]
[1733623529650,4.8844,239.84,239.75,20.0]
[1733623529973,8.06017844,239.8,239.76,20.0]
[1733623530867,8.06017844,239.8,239.75,20.0]
[1733623531072,8.06017844,239.8,239.76,20.0]
[1733623531281,8.06017844,239.82,239.76,20.0]
[1733623532373,8.06017844,239.82,239.75,28.06017844]
[1733623532793,8.06017844,239.82,239.76,4.174]
[1733623534380,3.24,239.84,239.75,24.174]
[1733623534551,3.24,239.84,239.73,8.68569082]
[1733623534552,8.06017844,239.81,239.76,20.0]
[1733623536572,8.06017844,239.81,239.77,4.174]
[1733623536777,8.06017844,239.81,239.75,20.62548978]
[1733623536976,8.06017844,239.81,239.77,20.0]
[1733623537376,3.24,239.84,239.78,20.0]
[1733623537564,8.06017844,239.83,239.78,20.0]
[1733623538457,3.24,239.84,239.79,8.81112339]
[1733623538659,3.24,239.84,239.82,20.0]
[1733623540947,8.06017844,239.83,239.81,20.0]
[1733623541375,3.24,239.84,239.81,20.0]
[1733623541376,11.30017844,239.84,239.81,20.0]
[1733623543292,3.24,239.84,239.81,20.0]
[1733623543650,3.24,239.84,239.82,20.0]
[1733623543852,3.24,239.84,239.81,20.0]
[1733623544057,3.24,239.84,239.82,20.0]
[1733623544267,3.24,239.84,239.83,20.0]
[1733623547063,3.24,239.84,239.83,24.174]
[1733623547384,3.24,239.84,239.83,20.12549]
[1733623548183,3.24,239.84,239.83,24.29949]
[1733623548381,3.24,239.84,239.83,20.12549]
[1733623548760,3.24,239.84,239.83,28.18566844]
[1733623549287,3.24,239.84,239.83,32.35966844]
[1733623550291,3.24,239.84,239.83,32.61064844]
[1733623551496,3.24,239.84,239.83,28.43664844]
[1733623551701,3.24,239.84,239.83,32.61064844]
[1733623552987,3.24,239.84,239.83,34.25828229]
[1733623554201,3.24,239.84,239.83,32.61064844]
[1733623554403,3.24,239.84,239.83,20.12549]
[1733623555296,3.24,239.84,239.83,20.0]
[1733623555485,3.24,239.84,239.83,24.174]
[1733623556405,3.24,239.84,239.83,24.29949]
[1733623557587,3.24,239.84,239.81,10.4248]
[1733623557988,3.24,239.84,239.79,0.12549]
[1733623558189,3.24,239.84,239.78,8.68554073]
[1733623558505,3.24,239.84,239.79,4.174]
[1733623559087,3.24,239.84,239.8,20.0]
[1733623559297,3.24,239.84,239.81,20.0]
[1733623559495,11.30017844,239.84,239.81,20.0]
[1733623559899,5.0,239.96,239.76,9.67137844]
[1733623559900,7.9041,239.98,239.86,20.0]
[1733623560200,8.06017844,239.96,239.88,8.06017844]
[1733623561107,8.06017844,239.97,239.9,8.06017844]
[1733623561684,8.06017844,239.97,239.91,4.174]
[1733623561994,8.06017844,239.97,239.9,8.06017844]
[1733623562193,8.06017844,239.97,239.9,0.12549]
[1733623562578,8.06017844,239.97,239.9,4.29949]
[1733623563779,8.06017844,239.94,239.87,18.48247844]
[1733623563975,8.06017844,239.94,239.88,0.12549]
[1733623564191,8.06017844,239.95,239.88,8.18566844]
[1733623564899,8.06017844,239.95,239.89,4.174]
[1733623571112,8.06017844,239.95,239.88,4.92463778]
[1733623572497,8.06017844,239.92,239.85,0.62517306]
[1733623572698,8.06017844,239.92,239.88,20.0]
[1733623573513,8.06017844,239.93,239.87,20.0]
[1733623573814,8.06017844,239.93,239.89,20.0]
[1733623574024,8.06017844,239.92,239.89,20.0]
[1733623574222,8.06017844,239.93,239.86,28.18566844]
[1733623574421,8.06017844,239.92,239.86,20.0]
[1733623574930,8.06017844,239.92,239.84,2.23645552]
[1733623575098,8.06017844,239.91,239.84,2.23645552]
[1733623575425,8.06017844,239.91,239.83,10.4237]
[1733623575426,8.06017844,239.89,239.8,0.62527642]
[1733623575614,8.06017844,239.89,239.82,8.06017844]
[1733623575818,8.06017844,239.89,239.83,8.06017844]
[1733623576514,8.06017844,239.89,239.83,12.23417844]
[1733623576690,23.902374,239.97,239.84,8.06017844]
[1733623577094,8.06017844,239.91,239.84,8.06017844]
[1733623577324,8.06017844,239.92,239.85,8.06017844]
[1733623577906,8.06017844,239.92,239.86,4.174]
[1733623578632,8.06017844,239.93,239.86,8.18566844]
[1733623578919,8.06017844,239.94,239.87,8.06017844]
[1733623579118,8.06017844,239.94,239.88,4.174]
[1733623579419,8.06017844,239.94,239.87,8.06017844]
[1733623579623,8.06017844,239.95,239.87,8.06017844]
[1733623580006,8.06017844,239.95,239.88,4.174]
[1733623580495,8.06017844,239.94,239.87,8.06017844]
[1733623580695,32.24071376,240.0,239.87,20.0]
[1733623580696,8.06017844,239.92,239.87,20.0]
[1733623581722,8.06017844,239.89,239.81,0.62518544]
[1733623581945,8.06017844,239.89,239.82,8.06017844]
[1733623582145,8.06017844,239.89,239.82,12.23417844]
[1733623583628,8.06017844,239.89,239.82,8.06017844]
[1733623583953,8.06017844,239.89,239.83,4.174]
[1733623584120,8.06017844,239.92,239.85,8.06017844]
[1733623584836,0.12549,239.98,239.85,8.06017844]
[1733623585039,8.06017844,239.93,239.86,28.68540628]
[1733623585938,8.06017844,239.93,239.87,4.174]
[1733623588009,8.06017844,239.93,239.87,24.174]
[1733623588939,8.06017844,239.92,239.86,24.174]
[1733623592340,8.06017844,239.91,239.84,0.12549]
[1733623592538,8.06017844,239.91,239.86,20.0]
[1733623594039,8.06017844,239.9,239.86,20.0]
[1733623595437,8.06017844,239.91,239.84,12.23417844]
[1733623596438,23.776884,239.99,239.86,8.06017844]
[1733623596611,8.06017844,239.93,239.87,8.06017844]
[1733623597459,8.06017844,239.93,239.86,8.06017844]
[1733623597660,8.06017844,239.93,239.87,4.174]
[1733623598355,8.06017844,239.93,239.85,12.35966844]
[1733623600151,8.06017844,239.92,239.85,12.35966844]
[1733623602550,8.06017844,239.92,239.86,4.174]
[1733623603430,8.06017844,239.91,239.87,20.0]
[1733623604656,8.06017844,239.92,239.87,20.0]
[1733623604824,8.06017844,239.93,239.87,20.0]
[1733623605245,8.06017844,239.93,239.85,9.77026844]
[1733623605455,8.06017844,239.92,239.85,9.77026844]
[1733623606131,8.06017844,239.95,239.88,20.0]
[1733623606349,23.776884,240.01,239.9,20.0]
[1733623606648,8.06017844,239.96,239.9,20.0]
[1733623607532,24.248231,240.02,239.9,20.0]
[1733623607735,24.248231,240.02,239.89,28.68531274]
[1733623607736,8.06017844,239.98,239.89,28.68531274]
[1733623607935,0.471347,240.02,239.91,0.12549]
[1733623608130,0.471347,240.02,239.91,4.174]
[1733623608456,8.06017844,239.97,239.91,4.174]
[1733623608922,0.471347,240.02,239.91,4.174]
[1733623609128,8.06017844,239.97,239.91,4.174]
[1733623609351,8.06017844,239.97,239.9,20.0]
[1733623609657,8.06017844,239.97,239.91,4.174]
[1733623610988,8.06017844,239.98,239.92,0.12549]
[1733623611982,8.06017844,239.98,239.92,4.29949]
[1733623613898,8.06017844,239.97,239.92,20.0]
[1733623614106,8.06017844,239.96,239.92,20.0]
[1733623614884,8.06017844,239.96,239.92,24.174]
[1733623615854,8.06017844,239.97,239.92,24.174]
[1733623616055,8.06017844,239.97,239.93,20.0]
[1733623617381,8.06017844,239.96,239.92,20.0]
[1733623617572,8.06017844,239.96,239.92,24.174]
[1733623617756,8.06017844,239.96,239.92,20.0]
[1733623618074,0.471347,240.02,239.92,20.0]
[1733623618075,8.06017844,239.97,239.92,20.0]
[1733623618582,8.06017844,239.97,239.93,20.0]
[1733623622443,8.06017844,239.98,239.93,20.0]
[1733623623778,8.06017844,239.98,239.93,24.174]
[1733623628177,8.06017844,239.98,239.93,4.174]
[1733623628561,8.06017844,239.98,239.93,24.174]
[1733623628753,8.06017844,239.97,239.93,24.174]
[1733623629169,8.06017844,239.97,239.93,4.174]
[1733623632079,8.06017844,239.97,239.92,20.0]
[1733623637991,8.06017844,239.97,239.92,24.174]
[1733623640394,8.06017844,239.95,239.88,0.12549]
[1733623640680,8.06017844,239.93,239.85,12.0074]
[1733623640882,8.06017844,239.93,239.85,20.69280866]
[1733623641384,8.06017844,239.93,239.86,4.174]
[1733623641691,8.06017844,239.93,239.88,4.174]
[1733623643999,0.471347,240.02,239.9,20.0]
[1733623644307,8.06017844,239.95,239.9,20.0]
[1733623645599,8.06017844,239.95,239.91,4.174]
[1733623646906,0.471347,240.02,239.91,28.06017844]
[1733623647078,8.06017844,239.98,239.91,20.0]
[1733623647277,8.06017844,239.96,239.91,20.0]
[1733623647883,8.06017844,239.96,239.92,4.174]
[1733623651006,8.06017844,239.96,239.91,20.0]
[1733623651300,8.06017844,239.93,239.87,6.6491]
[1733623651669,32.24071376,240.0,239.87,6.6491]
[1733623651670,32.24071376,240.0,239.88,0.62523079]
[1733623651873,8.06017844,239.96,239.88,8.68540923]
[1733623652187,8.06017844,239.95,239.88,12.85940923]
[1733623652395,8.06017844,239.95,239.88,12.23417844]